{"text_format":"1","workbook":"xlsx","n_sheets":6,"sheets":["Ohje","Yhteenveto","Haitta-ainekartoitus","Rakennusosat","Muut purkumateriaalit","Data"],"not_rendered":{"charts":4,"images":3,"macros":1,"external_links":0,"defined_names":9,"comments":3,"pivot_tables":3},"unopened":[],"bounds":{"document_bytes":16777216,"sheet_cells":100000,"rows_first":2000,"rows_last":500,"rows_between":2000,"halvings":0,"cell_chars":16384,"cell_head_chars":4096},"cells_cut":0,"cells_raw":0,"read":"whole","date_system":"1900"}

{"sheet":"Ohje","index":0,"n_rows":17,"n_cols":2,"rows_kept":17,"cut":false,"hidden":false,"merged":[[14,1,14,2],[16,1,20,2],[13,1,13,2],[1,1,1,2],[6,1,6,2],[10,1,10,2],[7,1,7,2]]}
[]
[null,"Purkukartoituksen raportointilomake"]
[null,"Versio 1.0 | julkaistu 15.11.2019"]
[]
[null,"Käyttöohje"]
[]
[null,"Tämä raportointilomake on tarkoitettu rakennuksen purkukartoituksen tulosten raportointiin. Purkaminen voi olla kokonaisen rakennuksen purku, osapurku tai purkutyö korjauksen yhteydessä. Jos samalla tontilla on useita purettavia rakennuksia, kukin rakennus raportoidaan omalla raportilla erilliseen tiedostoon.\n\n"]
[null,"Täytetyn purkukartoituslomakkeen lisäksi kartoituksesta voidaan tehdä myös erillinen yhteenvetoraportti, johon lomakkeet liitetään. Siinä voidaan kuvata tarkemmin mm. käytettyjä menetelmiä, kartoituksen lähtötietoja ja tehtyjä havaintoja sekä antaa suosituksia purkuhankkeen teettämiseen ja tekemiseen. "]
[]
[null,"Raportointilomakkeen sisältö"]
[null,"Työkalun eri välilehdille kootaan purkukatselmuksen tiedot seuraavasti:\n\nYhteenveto\nTälle välilehdelle kirjataan purettavan rakennuksen perustiedot ja purkukatselmuksen tekijöiden yhteystiedot. Välilehdelle kootaan myös graafina muiden välilehtien keskeiset tiedot. Graafien päivittämiseksi tulee klikata kullakin välilehdellä olevaa Päivitä taulukko -painiketta\n\nHaitta-ainekartoitus\nTälle välilehdelle kootaan yhteenveto haitta-ainekartoituksessa tunnistetuista haitallisia aineita sisältävistä materiaaleista, niiden määristä ja sijainneista. Huom! Varsinaisesta haitta-ainekartoituksesta ja -tutkimuksista laaditaan erillinen raportti.\n\nRakennusosat\nTälle välilehdelle kirjataan ensisijaisesti sellaiset materiaalit ja rakennusosat joilla on uudelleenkäyttöpotentiaalia. Uudelleenkäytöllä tarkoitetaan, että ne irroitetaan ehjänä ja käytetään sellaisenaan vastaavassa ja soveltuvassa käyttötarkoituksessa. Tuotteet tulee yksilöidä mahdollisimman selkeästi, jotta niille on mahdollista löytää uusi käyttökohde.\n\nMuut purkumateriaalit\nTälle välilehdelle kootaan purkukohteen materiaalit, joille ei purkukartoituksen yhteydessä tunnisteta uudelleenkäyttöarvoa, jolloin ne päätyvät jätteiksi. Materiaalien määrät ja laatu tulee arvioida riittävän tarkasti muun mahdollisen hyödyntämisen mahdollistamiseksi.\n"]
[]
[null,"Muita ohjeita lomakkeen täytöstä"]
[null," Jos solussa näkyy oikeassa yläkulmassa punainen kolmio, siihen on kirjattu lisäohjeita. Ohjeen saa näkyviin viemällä hiiren solun päälle."]
[]
[null,"Käyttöoikeus ja vastuuvapaus"]
[null,"Työkalu on käytettävissä veloituksetta. Lomaketta päivitetään tarvittaessa, joten on suositeltavaa käyttää aina viimeisintä versiota, joka on saatavilla ympäristöministeriön nettisivuilta.\n \nYmpäristöministeriö ei vastaa mistään vahingoista, jotka mahdollisesti aiheutuvat arviointityökalun käyttäjälle tai muulla taholle arviointityökalua käytettäessa tai muuten sovellettaessa siinä olevia toimintamalleja tai esimerkkejä."]

{"sheet":"Yhteenveto","index":1,"n_rows":82,"n_cols":4,"rows_kept":82,"cut":false,"hidden":false,"merged":[[10,1,11,1],[18,1,19,1],[26,1,26,3],[29,1,29,3],[28,1,28,3],[27,1,27,3],[32,1,34,1],[14,1,16,1],[22,1,23,1]]}
[]
[null,"Purkukartoituksen raportointilomake"]
[null,{"$f":"Ohje!B3","v":"Versio 1.0 | julkaistu 15.11.2019"}]
[]
[null,"Purkukohteen tiedot"]
[null,"Lähtötiedot"]
[null,"Omistajan tiedot","Kiinteistön omistaja"]
[null,null,"Omistajan yhteyshenkilö"]
[null,null,"Yhteyshenkiön puhelinnumero"]
[" ",null,"Yhteyshenkilön sähköposti"]
[null,"Rakennuskohteen tiedot","Rakennustunnus"]
[null,null,"Osoite"]
[null,null,"Rakennusvuosi"]
[null,null,"Rakennustyyppi/käyttötarkoitus"]
[null,null,"Bruttoala [brm2]"]
[null,null,"Tilavuus [m3]"]
[null,null,"Kerrosten lukumäärä"]
[null,null,"Kellarikerrosten lukumäärä"]
[null,"Rakennejärjestelmä","Perustustapa"]
[null,null,"Kantava runko"]
[null,null,"Pääasiallinen ulkoseinärakenne"]
[null,null,"Vesikattorakenne"]
[null,"Purku-urakan tiedot","Purkutyön laajuus"]
[null,null,"Purkutyön arvioitu aloitus [pp.kk.vvvv]"]
[null,null,"Purkutyön arvioitu valmistuminen [pp.kk.vvvv]"]
[null,"Katselmuksen liitemateriaali ja lähtötiedot"]
[]
[]
[]
[]
[]
[null,"Kartoituksen tekijä(t)"]
[null,null,null,"Tekijä 1"]
[null,null,"Nimi"]
[null,null,"Yritys"]
[null,null,"Rooli hankkeessa"]
[null,null,"Puhelinnumero"]
[null,null,"Sähköpostiosoite"]
[null,null,"Raportin päivämäärä"]
[null,null,"Tekijä 2","Tekijä 3"]
[null,"Nimi"]
[null,"Yritys"]
[null,"Rooli hankkeessa"]
[null,"Sähköpostiosoite"]
[null,"Puhelinnumero"]
[]
[null,"Purkukatselmuksen tulokset"]
[null,"Haitta-aineet (kg)"]
[null,null,null,{"$f":"IFERROR('Haitta-ainekartoitus'!#REF!/$D16,\"\")","v":""}]
[null,"Muut Purkumateriaalit",null,{"$f":"IFERROR((#REF!-#REF!)/$D16,\"\")","v":""}]
[]
[null,"Uudelleenkäytettävät rakennusosat",null,"Määrä yhteensä [kpl]"]
[null,{"$f":"Rakennusosat!B17","v":0},null,{"$f":"Rakennusosat!C17","v":0}]
[null,{"$f":"Rakennusosat!B18","v":0},null,{"$f":"Rakennusosat!C18","v":0}]
[null,{"$f":"Rakennusosat!B19","v":0},null,{"$f":"Rakennusosat!C19","v":0}]
[null,{"$f":"Rakennusosat!B20","v":0},null,{"$f":"Rakennusosat!C20","v":0}]
[null,{"$f":"Rakennusosat!B21","v":0},null,{"$f":"Rakennusosat!C21","v":0}]
[null,{"$f":"Rakennusosat!B22","v":0},null,{"$f":"Rakennusosat!C22","v":0}]
[null,{"$f":"Rakennusosat!B23","v":0},null,{"$f":"Rakennusosat!C23","v":0}]
[null,{"$f":"Rakennusosat!B24","v":0},null,{"$f":"Rakennusosat!C24","v":0}]
[null,{"$f":"Rakennusosat!B25","v":0},null,{"$f":"Rakennusosat!C25","v":0}]
[null,{"$f":"Rakennusosat!B26","v":0},null,{"$f":"Rakennusosat!C26","v":0}]
[null,{"$f":"Rakennusosat!B27","v":0},null,{"$f":"Rakennusosat!C27","v":0}]
[null,{"$f":"Rakennusosat!B28","v":0},null,{"$f":"Rakennusosat!C28","v":0}]
[null,{"$f":"Rakennusosat!B29","v":0},null,{"$f":"Rakennusosat!C29","v":0}]
[null,{"$f":"Rakennusosat!B30","v":0},null,{"$f":"Rakennusosat!C30","v":0}]
[null,{"$f":"Rakennusosat!B31","v":0},null,{"$f":"Rakennusosat!C31","v":0}]
[null,{"$f":"Rakennusosat!B32","v":0},null,{"$f":"Rakennusosat!C32","v":0}]
[null,{"$f":"Rakennusosat!B33","v":0},null,{"$f":"Rakennusosat!C33","v":0}]
[null,{"$f":"Rakennusosat!B34","v":0},null,{"$f":"Rakennusosat!C34","v":0}]
[null,{"$f":"Rakennusosat!B35","v":0},null,{"$f":"Rakennusosat!C35","v":0}]
[null,{"$f":"Rakennusosat!B36","v":0},null,{"$f":"Rakennusosat!C36","v":0}]
[null,{"$f":"Rakennusosat!B37","v":0},null,{"$f":"Rakennusosat!C37","v":0}]
[null,{"$f":"Rakennusosat!B38","v":0},null,{"$f":"Rakennusosat!C38","v":0}]
[null,{"$f":"Rakennusosat!B39","v":0},null,{"$f":"Rakennusosat!C39","v":0}]
[null,{"$f":"Rakennusosat!B40","v":0},null,{"$f":"Rakennusosat!C40","v":0}]
[null,{"$f":"Rakennusosat!B41","v":0},null,{"$f":"Rakennusosat!C41","v":0}]
[null,{"$f":"Rakennusosat!B42","v":0},null,{"$f":"Rakennusosat!C42","v":0}]
[null,{"$f":"Rakennusosat!B43","v":0},null,{"$f":"Rakennusosat!C43","v":0}]
[null,{"$f":"Rakennusosat!B44","v":0},null,{"$f":"Rakennusosat!C44","v":0}]
[null,{"$f":"Rakennusosat!B45","v":0},null,{"$f":"Rakennusosat!C45","v":0}]
[null,{"$f":"Rakennusosat!B46","v":0},null,{"$f":"Rakennusosat!C46","v":0}]

{"sheet":"Haitta-ainekartoitus","index":2,"n_rows":18,"n_cols":6,"rows_kept":18,"cut":false,"hidden":false,"merged":[[1,3,1,4],[2,3,2,4]]}
[]
[null,"Purkukartoituksen raportointilomake",null,"Haitallisia aineita sisältävät materiaalit, yhteenveto"]
[null,{"$f":"Ohje!B3","v":"Versio 1.0 | julkaistu 15.11.2019"},null,"Varsinainen haitta-ainekartoitus erillisenä raporttina"]
[]
[null,"Kategoria","Haitta-aine pitoinen materiaali","Määrä [kg]","Haitta-aineen sijainti rakennuksessa","Lisätiedot ja ohjeet purkua varten ml. työsuojelu"]
[]
[]
[]
[]
[]
[]
[]
[]
[]
[null,null,null,{"$f":"SUBTOTAL(109,HaittaaineetTable[Määrä '[kg']])","v":0}]
[]
[]
[null,"Row Labels","Määrä yhteensä [kg]"]

{"sheet":"Rakennusosat","index":3,"n_rows":16,"n_cols":9,"rows_kept":16,"cut":false,"hidden":false,"merged":[[1,4,1,6]]}
[]
[null,"Purkukartoituksen raportointilomake",null,null,"Rakennusosat"]
[null,{"$f":"Ohje!B3","v":"Versio 1.0 | julkaistu 15.11.2019"},null,null,"Uudelleenkäyttöön soveltuvat rakennusosat"]
[]
[null,"Rakennusosa tai -materiaali","Tarkempi kuvaus","Mitat","Määrä [kpl]","Käyttökelpoisuus","Sijainti rakennuksessa","Lisätiedot","Muuta"]
[]
[]
[]
[]
[]
[]
[]
[null,null,null,null,{"$f":"SUBTOTAL(109,RakenneosatTable[Määrä '[kpl']])","v":0}]
[]
[]
[null,null,"Määrä yhteensä [kpl]"]

{"sheet":"Muut purkumateriaalit","index":4,"n_rows":16,"n_cols":9,"rows_kept":16,"cut":false,"hidden":false,"merged":[[1,4,1,7]]}
[]
[null,"Purkukartoituksen raportointilomake",null,null,"Muut purkumateriaalit"]
[null,{"$f":"Ohje!B3","v":"Versio 1.0 | julkaistu 15.11.2019"},null,null,"Rakennus - ja purkujätteeksi päätyvä materiaali"]
[]
[null,"Purkumateriaali","Tarkempi kuvaus","Paino [tn]","Hyödyntämistapa","Sijainti rakennuksessa","Lisätiedot ja ohjeet hyödyntämistä ja purkua varten","Jätenimike EWC","Muuta"]
[]
[]
[]
[]
[]
[]
[]
[null,null,null,{"$f":"SUBTOTAL(109,MateriaalitTable[Paino '[tn']])","v":0}]
[]
[]
[null,null,"Paino yhteensä [tn]"]

{"sheet":"Data","index":5,"n_rows":92,"n_cols":8,"rows_kept":92,"cut":false,"hidden":true,"merged":[]}
[]
[null,"Vaaralliset aineet","Rakenneosa","Materiaalit","Yksikkö","Hyödynnettävyys","Hyödyntämistapa","Rakennustyyppi"]
[null,"Asbestipitoinen materiaali","Betonielementit","Luonnonkivi","kg","Erinomainen","Hyödyntäminen materiaalina","Asuinrakennukset - omakotitalo"]
[null,"Bromatut palonestoaineet","Tiilet","Betoni","jm","Hyvä","Hyödyntäminen energiana","Asuinrakennukset - pari- tai rivitalo"]
[null,"Raskasmetallipitoiset","Luonnonkivi","Tiili","m2","Kohtuullinen","Maantäyttö","Asuinrakennukset - kerrostalo"]
[null,"Öljyhiilivetypitoiset","Metallipalkit ja -tasot","Laatat ja muu keramiikka","m3",null,"Loppusijoitus tai loppukäsittely polttamalla","Vapaa-ajan asuinrakennukset"]
[null,"Kyllästetty puu","Puutavara - Hirret","Muut mineraalipohjaiset",null,null,"Muu jatkokäsittely","Liikerakennukset"]
[null,"Lamppu-SER","Puutavara - Runkopuu","Puut - käsittelemätön",null,null,null,"Toimistorakennukset"]
[null,"Mikrobivaurioiset materiaalit","Puutavara - Liimapuu","Puut - Käsitelty",null,null,null,"Liikenteen rakennukset"]
[null,"Muu haitta-ainepitoinen purkumateriaali","Puutavara - Muut","Eristeet - kivi- ja lasivilla",null,null,null,"Hoitoalan rakennukset"]
[null,"Muut kemikaalit","Ikkunat - sisä","Eristeet - muovieristeet",null,null,null,"Kokoontumisrakennukset"]
[null,"PAH & kreosoottipitoiset","Ikkuna - ulko","Eristeet - puukuitueristeet",null,null,null,"Opetusrakennukset"]
[null,"PCB -pitoinen materiaali","Ovet - sisä","Eristeet - sahapuru",null,null,null,"Teollisuusrakennukset"]
[null,"SER-romu","Ovet - ulko","Eristeet - muut",null,null,null,"Varastorakennukset"]
[null,"Öljyt","Kalusteet - kiinto","Metallit",null,null,null,"Palo- ja pelastustoimen rakennukset"]
[null,null,"Kalusteet - irto","Kipsilevyt",null,null,null,"Maatalousrakennukset"]
[null,null,"LVIS-kanavat ja tarvikkeet","Lasi",null,null,null,"Muut rakennukset"]
[null,null,"Koneet ja laitteet","Kattohuopa ja bitumi"]
[null,null,"Tulisijat","Asfaltti"]
[null,null,"Portaat, tikkaat","Muovit"]
[null,null,"Valaisimet","Linoleum/korkki"]
[null,null,"Helat","Pahvi ja paperi"]
[null,null,"Pihan pinnoitteet, varusteet ja kalusteet","Sekalainen rakennusjäte"]
[null,null,"Muut","Muut"]
[]
[]
[]
[]
[]
[]
[]
[]
[]
[]
[]
[]
[]
[]
[null,null,null,"Raportointinimikkeet",null,"Purkumateriaalien määrä"]
[null,null,null,"Luonnonkivi","Luonnonkivi",{"$f":"SUMIF(MateriaalitTable[Purkumateriaali],D40&\"*\",MateriaalitTable[Paino '[tn']])","v":0}]
[null,null,null,"Betoni","Betoni",{"$f":"SUMIF(MateriaalitTable[Purkumateriaali],D41&\"*\",MateriaalitTable[Paino '[tn']])","v":0}]
[null,null,null,"Tiili","Tiili",{"$f":"SUMIF(MateriaalitTable[Purkumateriaali],D42&\"*\",MateriaalitTable[Paino '[tn']])","v":0}]
[null,null,null,"Laatat ja muu keramiikka","Keramiikka",{"$f":"SUMIF(MateriaalitTable[Purkumateriaali],D43&\"*\",MateriaalitTable[Paino '[tn']])","v":0}]
[null,null,null,"Muut mineraalipohjaiset","Mineraalit",{"$f":"SUMIF(MateriaalitTable[Purkumateriaali],D44&\"*\",MateriaalitTable[Paino '[tn']])","v":0}]
[null,null,null,"Puut*","Puu",{"$f":"SUMIF(MateriaalitTable[Purkumateriaali],D45&\"*\",MateriaalitTable[Paino '[tn']])","v":0}]
[null,null,null,"Eristeet*","Eristeet",{"$f":"SUMIF(MateriaalitTable[Purkumateriaali],D46&\"*\",MateriaalitTable[Paino '[tn']])","v":0}]
[null,null,null,"Metallit","Metalli",{"$f":"SUMIF(MateriaalitTable[Purkumateriaali],D47&\"*\",MateriaalitTable[Paino '[tn']])","v":0}]
[null,null,null,"Kipsilevyt","Kipsi",{"$f":"SUMIF(MateriaalitTable[Purkumateriaali],D48&\"*\",MateriaalitTable[Paino '[tn']])","v":0}]
[null,null,null,"Lasi","Lasi",{"$f":"SUMIF(MateriaalitTable[Purkumateriaali],D49&\"*\",MateriaalitTable[Paino '[tn']])","v":0}]
[null,null,null,"Kattohuopa ja bitumi","Bitumi",{"$f":"SUMIF(MateriaalitTable[Purkumateriaali],D50&\"*\",MateriaalitTable[Paino '[tn']])","v":0}]
[null,null,null,"Asfaltti","Asfaltti",{"$f":"SUMIF(MateriaalitTable[Purkumateriaali],D51&\"*\",MateriaalitTable[Paino '[tn']])","v":0}]
[null,null,null,"Muovit","Muovi",{"$f":"SUMIF(MateriaalitTable[Purkumateriaali],D52&\"*\",MateriaalitTable[Paino '[tn']])","v":0}]
[null,null,null,"Linoleum/korkki","Linoleum",{"$f":"SUMIF(MateriaalitTable[Purkumateriaali],D53&\"*\",MateriaalitTable[Paino '[tn']])","v":0}]
[null,null,null,"Pahvi ja paperi","Pahvi ja paperi",{"$f":"SUMIF(MateriaalitTable[Purkumateriaali],D54&\"*\",MateriaalitTable[Paino '[tn']])","v":0}]
[null,null,null,"Sekalainen rakennusjäte","Sekajäte",{"$f":"SUMIF(MateriaalitTable[Purkumateriaali],D55&\"*\",MateriaalitTable[Paino '[tn']])","v":0}]
[null,null,null,"Muut","Muut",{"$f":"SUMIF(MateriaalitTable[Purkumateriaali],D56&\"*\",MateriaalitTable[Paino '[tn']])","v":0}]
[]
[]
[]
[]
[]
[]
[null,null,null,"Alkuperäinen lista"]
[null,null,null,"Kivipohjaiset materiaalit"]
[null,null,null,"luonnonkivi"]
[null,null,null,"betoni"]
[null,null,null,"tiili"]
[null,null,null,"keraamiset laatat"]
[null,null,null,"muut kivipohjaiset materiaalit"]
[null,null,null,"Puupohjaiset materiaalit (tarkkuus?)"]
[null,null,null,"hirret"]
[null,null,null,"runkopuu"]
[null,null,null,"liimapuu"]
[null,null,null,"lautatavara"]
[null,null,null,"vanerit ja muut umpipuulevyt"]
[null,null,null,"puukuitulevyt"]
[null,null,null,"lastulevyt"]
[null,null,null,"muut"]
[null,null,null,"Kipsilevyt"]
[null,null,null,"Lasi"]
[null,null,null,"Eristeet"]
[null,null,null,"kivi- ja lasivilla"]
[null,null,null,"muovieristeet"]
[null,null,null,"puukuitueristeet"]
[null,null,null,"sahapuru"]
[null,null,null,"muut eristeet"]
[null,null,null,"Kattohuopa ja bitumi"]
[null,null,null,"Muovit"]
[null,null,null,"Linoleum/korkki"]
[null,null,null,"Metallit"]
[null,null,null,"Pahvi ja paperi"]
[null,null,null,"Sekalainen rakennusjäte?"]